fUSD/lending_fUSD_20250911
["ID","MTS","AMOUNT","RATE_DAILY","PERIOD"]
[384936508,1757628644705,-400.0,0.00027397,7]
[384936510,1757628644714,-400.0,0.00027397,7]
[384936512,1757628644723,-400.0,0.00027397,7]
[384936514,1757628644733,-431.56,0.00027397,7]
[384936516,1757628644743,-400.0,0.00027397,7]
[384936518,1757628644752,-400.0,0.00027397,7]
[384936520,1757628644761,-410.98,0.00027397,7]
[384936522,1757628644771,-2146.59,0.00027397,7]
[384936524,1757628644782,-4358.77,0.00027397,7]
[384936526,1757628644791,-400.0,0.00027397,7]
[384936528,1757628644800,-400.0,0.00027397,7]
[384936530,1757628644810,-400.0,0.00027397,7]
[384936532,1757628644823,-450.17,0.00027397,7]
[384936535,1757628644833,-400.0,0.00027397,7]
[384936537,1757628644842,-400.0,0.00027397,7]
[384936539,1757628644853,-1205.54,0.00027397,7]
[384936541,1757628644862,-400.0,0.00027397,7]
[384936543,1757628644871,-1214.85,0.00027397,7]
[384936545,1757628644881,-411.84825561,0.00027397,7]
[384936547,1757628644890,-400.0,0.00027397,7]
[384936549,1757628644899,-1318.87,0.00027397,7]
[384936551,1757628644909,-953.68,0.00027397,7]
[384936553,1757628644918,-400.0,0.00027397,7]
[384936555,1757628644927,-400.0,0.00027397,7]
[384936557,1757628644937,-433.72544989,0.00027397,7]
[384936559,1757628644947,-400.0,0.00027397,7]
[384936561,1757628644957,-1099.81,0.00027397,7]
[384936563,1757628644967,-400.0,0.00027397,7]
[384936565,1757628644977,-414.03440759,0.00027397,7]
[384936567,1757628644986,-400.0,0.00027397,7]
[384936569,1757628644995,-1458.86,0.00027397,7]
[384936571,1757628645005,-400.0,0.00027397,7]
[384936573,1757628645014,-988.53,0.00027397,7]
[384936575,1757628645023,-5448.86,0.00027397,7]
[384936577,1757628645033,-400.0,0.00027397,7]
[384936579,1757628645043,-400.0,0.00027397,7]
[384936581,1757628645053,-1148.53,0.00027397,7]
[384936583,1757628645062,-400.0,0.00027397,7]
[384936585,1757628645072,-400.0,0.00027397,7]
[384936588,1757628645082,-400.0,0.00027397,7]
[384936590,1757628645091,-400.0,0.00027397,7]
[384936592,1757628645100,-1060.69,0.00027397,7]
[384936594,1757628645110,-400.0,0.00027397,7]
[384936596,1757628645119,-400.0,0.00027397,7]
[384936598,1757628645129,-400.0,0.00027397,7]
[384936600,1757628645138,-1532.42,0.00027397,7]
[384936602,1757628645147,-851.1,0.00027397,7]
[384936604,1757628645157,-416.9597082,0.00027397,7]
[384936606,1757628645166,-568.47,0.00027397,7]
[384936608,1757628645176,-4041.41,0.00027397,7]
[384936610,1757628645185,-400.0,0.00027397,7]
[384936612,1757628645196,-1000.14,0.00027397,7]
[384936614,1757628645206,-400.0,0.00027397,7]
[384936616,1757628645215,-715.42,0.00027397,7]
[384936618,1757628645224,-400.0,0.00027397,7]
[384936620,1757628645234,-400.0,0.00027397,7]
[384936622,1757628645244,-400.0,0.00027397,7]
[384936624,1757628645254,-2033.83,0.00027397,7]
[384936626,1757628645263,-400.0,0.00027397,7]
[384936628,1757628645272,-400.0,0.00027397,7]
[384936631,1757628645282,-400.0,0.00027397,7]
[384936635,1757628645292,-400.0,0.00027397,7]
[384936638,1757628645302,-400.0,0.00027397,7]
[384936640,1757628645311,-400.0,0.00027397,7]
[384936642,1757628645320,-1268.02,0.00027397,7]
[384936644,1757628645330,-776.44,0.00027397,7]
[384936646,1757628645339,-400.0,0.00027397,7]
[384936648,1757628645348,-400.0,0.00027397,7]
[384936650,1757628645360,-400.0,0.00027397,7]
[384936653,1757628645369,-697.96,0.00027397,7]
[384936655,1757628645379,-928.32,0.00027397,7]
[384936657,1757628645388,-1185.32,0.00027397,7]
[384936659,1757628645398,-400.0,0.00027397,7]
[384936661,1757628645407,-431.00088122,0.00027397,7]
[384936663,1757628645417,-400.0,0.00027397,7]
[384936665,1757628645426,-400.0,0.00027397,7]
[384936667,1757628645435,-1301.7,0.00027397,7]
[384936669,1757628645445,-400.0,0.00027397,7]
[384936671,1757628645454,-400.0,0.00027397,7]
[384936673,1757628645464,-400.0,0.00027397,7]
[384936675,1757628645473,-1417.0,0.00027397,7]
[384936677,1757628645482,-917.53,0.00027397,7]
[384936679,1757628645492,-400.0,0.00027397,7]
[384936681,1757628645502,-439.21391027,0.00027397,7]
[384936683,1757628645511,-460.39,0.00027397,7]
[384936685,1757628645521,-1372.12,0.00027397,7]
[384936687,1757628645530,-754.53,0.00027397,7]
[384936689,1757628645539,-400.0,0.00027397,7]
[384936691,1757628645548,-400.0,0.00027397,7]
[384936693,1757628645558,-400.0,0.00027397,7]
[384936695,1757628645567,-400.0,0.00027397,7]
[384936697,1757628645577,-1177.08,0.00027397,7]
[384936699,1757628645586,-1269.72,0.00027397,7]
[384936701,1757628645596,-736.99,0.00027397,7]
[384936703,1757628645606,-736.99,0.00027397,7]
[384936705,1757628645615,-1433.58,0.00027397,7]
[384936707,1757628645624,-736.99,0.00027397,7]
[384936710,1757628645635,-736.99,0.00027397,7]
[384936712,1757628645645,-736.99,0.00027397,7]
[384936714,1757628645655,-347.36114585,0.00027397,7]
[384936716,1757628645665,-736.99,0.00027397,7]
[384936718,1757628645674,-400.0,0.00027397,7]
[384936720,1757628645684,-736.99,0.00027397,7]
[384936722,1757628645693,-736.99,0.00027397,7]
[384936724,1757628645703,-1997.21,0.00027397,7]
[384936726,1757628645712,-1402.28,0.00027397,7]
[384936728,1757628645721,-2181.22,0.00027397,7]
[384936730,1757628645731,-400.0,0.00027397,7]
[384936732,1757628645740,-400.0,0.00027397,7]
[384936734,1757628645749,-924.99,0.00027397,7]
[384936736,1757628645758,-650.32,0.00027397,7]
[384936738,1757628645767,-1200.12,0.00027397,7]
[384936765,1757628646100,-400.0,0.00027397,7]
[384936768,1757628646115,-400.0,0.00027397,7]
[384936769,1757628646125,-400.0,0.00027397,7]
[384936771,1757628646135,-400.0,0.00027397,7]
[384936773,1757628646144,-1333.0,0.00027397,7]
[384936776,1757628646154,-400.0,0.00027397,7]
[384936778,1757628646164,-1559.39,0.00027397,7]
[384936779,1757628646174,-400.0,0.00027397,7]
[384936781,1757628646184,-2532.2,0.00027397,7]
[384936783,1757628646193,-400.0,0.00027397,7]
[384936785,1757628646202,-400.0,0.00027397,7]
[384936787,1757628646212,-1539.69,0.00027397,7]
[384936789,1757628646222,-400.0,0.00027397,7]
[384936791,1757628646231,-400.0,0.00027397,7]
[384936793,1757628646241,-401.84,0.00027397,7]
[384936795,1757628646251,-1660.3,0.00027397,7]
[384936797,1757628646260,-969.75,0.00027397,7]
[384936799,1757628646269,-411.57295908,0.00027397,7]
[384936801,1757628646279,-683.35,0.00027397,7]
[384936803,1757628646288,-400.0,0.00027397,7]
[384936805,1757628646297,-400.0,0.00027397,7]
[384936807,1757628646307,-400.0,0.00027397,7]
[384936809,1757628646316,-410.48291397,0.00027397,7]
[384936811,1757628646326,-400.0,0.00027397,7]
[384936813,1757628646335,-1330.53,0.00027397,7]
[384936815,1757628646345,-1566.08,0.00027397,7]
[384936817,1757628646355,-400.0,0.00027397,7]
[384936819,1757628646364,-400.0,0.00027397,7]
[384936821,1757628646374,-400.0,0.00027397,7]
[384936823,1757628646383,-400.0,0.00027397,7]
[384936825,1757628646392,-400.0,0.00027397,7]
[384936827,1757628646402,-400.0,0.00027397,7]
[384936828,1757628646412,-1413.4,0.00027397,7]
[384936830,1757628646421,-400.0,0.00027397,7]
[384936832,1757628646430,-400.0,0.00027397,7]
[384936834,1757628646440,-2066.23,0.00027397,7]
[384936836,1757628646449,-835.28,0.00027397,7]
[384936838,1757628646458,-1028.31,0.00027397,7]
[384936840,1757628646467,-427.74,0.00027397,7]
[384936842,1757628646477,-400.0,0.00027397,7]
[384936844,1757628646486,-498.02,0.00027397,7]
[384936846,1757628646495,-1727.18,0.00027397,7]
[384936848,1757628646504,-769.26,0.00027397,7]
[384936850,1757628646514,-1727.83,0.00027397,7]
[384936852,1757628646523,-400.0,0.00027397,7]
[384936854,1757628646533,-729.4,0.00027397,7]
[384936856,1757628646542,-423.83330927,0.00027397,7]
[384936858,1757628646551,-400.0,0.00027397,7]
[384936860,1757628646560,-1419.69,0.00027397,7]
[384936862,1757628646570,-400.0,0.00027397,7]
[384936864,1757628646578,-1560.74,0.00027397,7]
[384936865,1757628646588,-954.74,0.00027397,7]
[384936867,1757628646597,-1481.02,0.00027397,7]
[384936869,1757628646608,-405.53055351,0.00027397,7]
[384936871,1757628646617,-400.0,0.00027397,7]
[384936873,1757628646627,-2459.5,0.00027397,7]
[384936876,1757628646636,-400.0,0.00027397,7]
[384936878,1757628646647,-400.0,0.00027397,7]
[384936880,1757628646656,-1392.1,0.00027397,7]
[384936881,1757628646666,-773.32,0.00027397,7]
[384936884,1757628646675,-400.0,0.00027397,7]
[384936886,1757628646685,-400.0,0.00027397,7]
[384936888,1757628646694,-1204.83,0.00027397,7]
[384936890,1757628646703,-400.0,0.00027397,7]
[384936891,1757628646713,-3879.25,0.00027397,7]
[384936894,1757628646722,-1205.01,0.00027397,7]
[384936896,1757628646732,-1140.96,0.00027397,7]
[384936898,1757628646743,-1333.04,0.00027397,7]
[384936900,1757628646752,-400.0,0.00027397,7]
[384936902,1757628646761,-1229.23,0.00027397,7]
[384936903,1757628646770,-858.87,0.00027397,7]
[384936905,1757628646780,-1252.22,0.00027397,7]
[384936907,1757628646789,-400.0,0.00027397,7]
[384936909,1757628646798,-966.8,0.00027397,7]
[384936911,1757628646808,-3577.74,0.00027397,7]
[384936913,1757628646821,-430.53,0.00027397,7]
[384936915,1757628646830,-411.3905427,0.00027397,7]
[384936917,1757628646840,-501.76,0.00027397,7]
[384936919,1757628646850,-513.16434279,0.00027397,7]
[384936921,1757628646860,-400.0,0.00027397,7]
[384936923,1757628646870,-400.0,0.00027397,7]
[384936925,1757628646880,-400.0,0.00027397,7]
[384936927,1757628646890,-2265.86,0.00027397,7]
[384936929,1757628646900,-400.0,0.00027397,7]
[384936931,1757628646909,-832.6,0.00027397,7]
[384936933,1757628646919,-400.0,0.00027397,7]
[384936935,1757628646928,-400.0,0.00027397,7]
[384936937,1757628646937,-509.14,0.00027397,7]
[384936939,1757628646948,-1772.48,0.00027397,7]
[384936942,1757628646958,-4382.54,0.00027397,7]
[384936944,1757628646967,-400.0,0.00027397,7]
[384936946,1757628646976,-400.0,0.00027397,7]
[384936947,1757628646986,-400.0,0.00027397,7]
[384936949,1757628646995,-1768.01,0.00027397,7]
[384936952,1757628647006,-976.65,0.00027397,7]
[384936953,1757628647015,-1003.17,0.00027397,7]
[384936956,1757628647025,-1160.14,0.00027397,7]
[384936957,1757628647034,-400.0,0.00027397,7]
[384936960,1757628647044,-400.0,0.00027397,7]
[384936962,1757628647054,-1361.69,0.00027397,7]
[384936964,1757628647063,-400.0,0.00027397,7]
[384936966,1757628647073,-400.0,0.00027397,7]
[384936968,1757628647083,-1321.26,0.00027397,7]
[384936970,1757628647092,-1097.74,0.00027397,7]
[384936972,1757628647101,-684.75,0.00027397,7]
[384936974,1757628647111,-400.0,0.00027397,7]
[384936976,1757628647121,-400.0,0.00027397,7]
[384936978,1757628647130,-400.0,0.00027397,7]
[384936980,1757628647140,-400.0,0.00027397,7]
[384936982,1757628647149,-698.12,0.00027397,7]
[384936984,1757628647158,-1663.78,0.00027397,7]
[384936986,1757628647167,-400.0,0.00027397,7]
[384936988,1757628647177,-400.0,0.00027397,7]
[384936990,1757628647186,-400.0,0.00027397,7]
[384936992,1757628647195,-1052.31,0.00027397,7]
[384936994,1757628647205,-400.0,0.00027397,7]
[384936996,1757628647214,-400.0,0.00027397,7]
[384936998,1757628647223,-2715.91,0.00027397,7]
[384937000,1757628647232,-475.52,0.00027397,7]
[384937002,1757628647241,-1269.72,0.00027397,7]
[384937004,1757628647251,-400.0,0.00027397,7]
[384937006,1757628647260,-1337.97,0.00027397,7]
[384937008,1757628647270,-340.62857928,0.00027397,7]
[384937010,1757628647279,-1931.36,0.00027397,7]
[384937012,1757628647288,-1201.99,0.00027397,7]
[384937014,1757628647297,-400.0,0.00027397,7]
[384937016,1757628647307,-400.0,0.00027397,7]
[384937018,1757628647316,-400.0,0.00027397,7]
[384937020,1757628647325,-500.0,0.00027397,7]
[384937022,1757628647334,-500.0,0.00027397,7]
[384937024,1757628647343,-500.0,0.00027397,7]
[384937026,1757628647353,-500.0,0.00027397,7]
[384937028,1757628647363,-1091.94,0.00027397,7]
[384937030,1757628647373,-500.0,0.00027397,7]
[384937032,1757628647382,-1127.85,0.00027397,7]
[384937034,1757628647391,-400.0,0.00027397,7]
[384937036,1757628647401,-561.36,0.00027397,7]
[384937038,1757628647410,-400.0,0.00027397,7]
[384937040,1757628647419,-409.73376597,0.00027397,7]
[384937042,1757628647428,-1304.07,0.00027397,7]
[384937044,1757628647437,-400.0,0.00027397,7]
[384937046,1757628647447,-347.59848585,0.00027397,7]
[384937048,1757628647456,-400.0,0.00027397,7]
[384937050,1757628647466,-468.12,0.00027397,7]
[384937052,1757628647475,-415.68563383,0.00027397,7]
[384937054,1757628647485,-400.0,0.00027397,7]
[384937056,1757628647494,-1168.61,0.00027397,7]
[384937058,1757628647503,-1916.29,0.00027397,7]
[384937060,1757628647513,-409.14,0.00027397,7]
[384937062,1757628647522,-2679.14,0.00027397,7]
[384937064,1757628647532,-1122.8,0.00027397,7]
[384937066,1757628647541,-1324.19,0.00027397,7]
[384937068,1757628647550,-1143.27,0.00027397,7]
[384937070,1757628647560,-400.0,0.00027397,7]
[384937072,1757628647570,-400.0,0.00027397,7]
[384937074,1757628647579,-864.65,0.00027397,7]
[384937076,1757628647589,-1329.86,0.00027397,7]
[384937078,1757628647599,-351.96399177,0.00027397,7]
[384937080,1757628647609,-400.0,0.00027397,7]
[384937082,1757628647619,-400.0,0.00027397,7]
[384937084,1757628647630,-400.0,0.00027397,7]
[384937086,1757628647639,-400.0,0.00027397,7]
[384937088,1757628647649,-1826.11,0.00027397,7]
[384937090,1757628647658,-400.0,0.00027397,7]
[384937092,1757628647667,-400.0,0.00027397,7]
[384937094,1757628647677,-400.0,0.00027397,7]
[384937096,1757628647686,-440.07,0.00027397,7]
[384937098,1757628647695,-400.0,0.00027397,7]
[384937100,1757628647704,-530.16,0.00027397,7]
[384937102,1757628647714,-1565.79,0.00027397,7]
[384937104,1757628647723,-400.0,0.00027397,7]
[384937106,1757628647732,-400.0,0.00027397,7]
[384937108,1757628647743,-204.54120456,0.00027397,7]
[384937110,1757628647752,-400.0,0.00027397,7]
[384937112,1757628647761,-400.0,0.00027397,7]
[384937114,1757628647771,-1426.48,0.00027397,7]
[384937116,1757628647780,-400.0,0.00027397,7]
[384937118,1757628647789,-517.0,0.00027397,7]
[384937120,1757628647798,-400.0,0.00027397,7]
[384937122,1757628647807,-400.0,0.00027397,7]
[384937123,1757628647820,-400.0,0.00027397,7]
[384937124,1757628647829,-1192.85,0.00027397,7]
[384937125,1757628647837,-1304.83,0.00027397,7]
[384937126,1757628647847,-2450.44,0.00027397,7]
[384937127,1757628647857,-1982.93,0.00027397,7]
[384937128,1757628647866,-400.0,0.00027397,7]
[384937129,1757628647875,-400.0,0.00027397,7]
[384937130,1757628647884,-990.8,0.00027397,7]
[384937131,1757628647896,-475.09,0.00027397,7]
[384937133,1757628647905,-400.0,0.00027397,7]
[384937135,1757628647914,-400.0,0.00027397,7]
[384937137,1757628647924,-1534.43,0.00027397,7]
[384937139,1757628647933,-434.11,0.00027397,7]
[384937141,1757628647942,-1396.61,0.00027397,7]
[384937143,1757628647951,-405.86,0.00027397,7]
[384937145,1757628647960,-400.0,0.00027397,7]
[384937147,1757628647970,-5085.74,0.00027397,7]
[384937149,1757628647979,-4344.4,0.00027397,7]
[384937151,1757628647988,-1955.64,0.00027397,7]
[384937153,1757628647997,-400.0,0.00027397,7]
[384937155,1757628648006,-400.0,0.00027397,7]
[384937157,1757628648015,-400.0,0.00027397,7]
[384937159,1757628648025,-400.0,0.00027397,7]
[384937161,1757628648034,-2148.43,0.00027397,7]
[384937163,1757628648043,-400.0,0.00027397,7]
[384937165,1757628648052,-400.0,0.00027397,7]
[384937167,1757628648061,-1462.56,0.00027397,7]
[384937169,1757628648070,-400.0,0.00027397,7]
[384937171,1757628648079,-1706.72,0.00027397,7]
[384937173,1757628648088,-1671.81,0.00027397,7]
[384937175,1757628648097,-400.0,0.00027397,7]
[384937177,1757628648106,-400.0,0.00027397,7]
[384937179,1757628648115,-707.45,0.00027397,7]
[384937181,1757628648124,-400.0,0.00027397,7]
[384937183,1757628648133,-830.81,0.00027397,7]
[384937185,1757628648143,-1734.69,0.00027397,7]
[384937187,1757628648152,-400.0,0.00027397,7]
[384937189,1757628648164,-3349.92,0.00027397,7]
[384937191,1757628648173,-3744.96,0.00027397,7]
[384937193,1757628648183,-1192.33,0.00027397,7]
[384937195,1757628648192,-425.29,0.00027397,7]
[384937197,1757628648201,-400.0,0.00027397,7]
[384937199,1757628648211,-400.0,0.00027397,7]
[384937201,1757628648220,-400.0,0.00027397,7]
[384937203,1757628648229,-400.0,0.00027397,7]
[384937205,1757628648239,-1148.06,0.00027397,7]
[384937207,1757628648248,-861.42,0.00027397,7]
[384937209,1757628648258,-661.93,0.00027397,7]
[384937211,1757628648267,-895.01,0.00027397,7]
[384937213,1757628648278,-859.99,0.00027397,7]
[384937215,1757628648288,-212.89373682,0.00027397,7]
[384937217,1757628648297,-1915.78,0.00027397,7]
[384937219,1757628648307,-400.0,0.00027397,7]
[384937221,1757628648316,-1494.87,0.00027397,7]
[384937223,1757628648326,-400.0,0.00027397,7]
[384937225,1757628648335,-400.0,0.00027397,7]
[384937227,1757628648344,-400.0,0.00027397,7]
[384937229,1757628648358,-400.0,0.00027397,7]
[384937231,1757628648368,-400.0,0.00027397,7]
[384937233,1757628648378,-400.0,0.00027397,7]
[384937235,1757628648390,-400.0,0.00027397,7]
[384937237,1757628648400,-8466.84,0.00027397,7]
[384937249,1757628648499,-400.0,0.00027397,7]
[384937251,1757628648508,-400.0,0.00027397,7]
[384937253,1757628648518,-400.0,0.00027397,7]
[384937255,1757628648527,-2191.65,0.00027397,7]
[384937257,1757628648536,-5454.09,0.00027397,7]
[384937259,1757628648545,-400.0,0.00027397,7]
[384937261,1757628648554,-400.0,0.00027397,7]
[384937263,1757628648564,-400.0,0.00027397,7]
[384937265,1757628648573,-400.0,0.00027397,7]
[384937267,1757628648583,-400.0,0.00027397,7]
[384937269,1757628648593,-400.0,0.00027397,7]
[384937271,1757628648602,-400.0,0.00027397,7]
[384937273,1757628648612,-400.0,0.00027397,7]
[384937275,1757628648621,-400.0,0.00027397,7]
[384937277,1757628648631,-400.0,0.00027397,7]
[384937279,1757628648640,-166.334012,0.00027397,7]
[384937281,1757628648649,-400.0,0.00027397,7]
[384937283,1757628648659,-1425.48,0.00027397,7]
[384937285,1757628648668,-400.0,0.00027397,7]
[384937287,1757628648678,-400.0,0.00027397,7]
[384937289,1757628648687,-632.91,0.00027397,7]
[384937291,1757628648695,-1165.86,0.00027397,7]
[384937293,1757628648704,-400.0,0.00027397,7]
[384937295,1757628648713,-500.0,0.00027397,7]
[384937297,1757628648722,-500.0,0.00027397,7]
[384937299,1757628648731,-500.0,0.00027397,7]
[384937301,1757628648741,-400.0,0.00027397,7]
[384937303,1757628648751,-715.31,0.00027397,7]
[384937305,1757628648760,-400.0,0.00027397,7]
[384937307,1757628648769,-500.0,0.00027397,7]
[384937309,1757628648779,-400.0,0.00027397,7]
[384937312,1757628648793,-400.0,0.00027397,7]
[384937313,1757628648802,-997.84,0.00027397,7]
[384937315,1757628648812,-400.0,0.00027397,7]
[384937317,1757628648824,-1166.93,0.00027397,7]
[384937320,1757628648834,-400.0,0.00027397,7]
[384937322,1757628648843,-400.0,0.00027397,7]
[384937324,1757628648853,-400.0,0.00027397,7]
[384937326,1757628648863,-400.0,0.00027397,7]
[384937328,1757628648873,-400.0,0.00027397,7]
[384937330,1757628648883,-400.0,0.00027397,7]
[384937332,1757628648893,-1003.08,0.00027397,7]
[384937334,1757628648902,-1532.61,0.00027397,7]
[384937336,1757628648912,-1292.56,0.00027397,7]
[384937338,1757628648922,-1408.42,0.00027397,7]
[384937340,1757628648933,-400.0,0.00027397,7]
[384937342,1757628648942,-400.0,0.00027397,7]
[384937344,1757628648951,-1488.85,0.00027397,7]
[384937346,1757628648960,-400.0,0.00027397,7]
[384937348,1757628648969,-400.0,0.00027397,7]
[384937350,1757628648979,-400.0,0.00027397,7]
[384937352,1757628648988,-3117.39,0.00027397,7]
[384937354,1757628648999,-400.0,0.00027397,7]
[384937356,1757628649008,-400.0,0.00027397,7]
[384937358,1757628649018,-400.0,0.00027397,7]
[384937360,1757628649027,-544.42,0.00027397,7]
[384937362,1757628649037,-753.71,0.00027397,7]
[384937364,1757628649046,-707.69,0.00027397,7]
[384937366,1757628649056,-1420.01,0.00027397,7]
[384937368,1757628649065,-1400.85,0.00027397,7]
[384937370,1757628649075,-583.52,0.00027397,7]
[384937372,1757628649084,-400.0,0.00027397,7]
[384937374,1757628649094,-1259.7,0.00027397,7]
[384937376,1757628649103,-1589.27,0.00027397,7]
[384937378,1757628649112,-400.0,0.00027397,7]
[384937380,1757628649121,-629.27,0.00027397,7]
[384937382,1757628649130,-1450.38,0.00027397,7]
[384937384,1757628649140,-400.0,0.00027397,7]
[384937386,1757628649149,-500.0,0.00027397,7]
[384937388,1757628649159,-500.0,0.00027397,7]
[384937390,1757628649169,-500.0,0.00027397,7]
[384937392,1757628649179,-574.99532481,0.00027397,7]
[384937394,1757628649188,-1162.71,0.00027397,7]
[384937396,1757628649198,-599.33,0.00027397,7]
[384937398,1757628649208,-400.0,0.00027397,7]
[384937400,1757628649218,-400.0,0.00027397,7]
[384937402,1757628649227,-1582.59,0.00027397,7]
[384937404,1757628649236,-400.0,0.00027397,7]
[384937406,1757628649245,-400.0,0.00027397,7]
[384937408,1757628649254,-400.0,0.00027397,7]
[384937410,1757628649263,-6940.31,0.00027397,7]
[384937412,1757628649272,-4692.91,0.00027397,7]
[384937414,1757628649282,-1366.29,0.00027397,7]
[384937416,1757628649291,-400.0,0.00027397,7]
[384937418,1757628649301,-1503.6,0.00027397,7]
[384937420,1757628649310,-1355.43,0.00027397,7]
[384937422,1757628649319,-849.21,0.00027397,7]
[384937424,1757628649329,-2984.51,0.00027397,7]
[384937426,1757628649338,-213.94336354,0.00027397,7]
[384937427,1757628649347,-400.0,0.00027397,7]
[384937428,1757628649356,-1239.25,0.00027397,7]
[384937429,1757628649366,-590.47,0.00027397,7]
[384937430,1757628649375,-400.0,0.00027397,7]
[384937431,1757628649384,-400.0,0.00027397,7]
[384937432,1757628649393,-967.71,0.00027397,7]
[384937433,1757628649405,-403.33,0.00027397,7]
[384937434,1757628649414,-400.0,0.00027397,7]
[384937435,1757628649424,-400.0,0.00027397,7]
[384937436,1757628649433,-400.0,0.00027397,7]
[384937437,1757628649441,-400.0,0.00027397,7]
[384937438,1757628649451,-400.0,0.00027397,7]
[384937439,1757628649460,-400.0,0.00027397,7]
[384937440,1757628649469,-1052.44,0.00027397,7]
[384937441,1757628649478,-400.0,0.00027397,7]
[384937442,1757628649488,-1936.87,0.00027397,7]
[384937443,1757628649497,-400.0,0.00027397,7]
[384937444,1757628649506,-400.0,0.00027397,2]
[384937445,1757628649515,-400.0,0.00027397,7]
[384937446,1757628649525,-400.0,0.00027397,7]
[384937447,1757628649534,-400.0,0.00027397,7]
[384937448,1757628649543,-400.0,0.00027397,7]
[384937449,1757628649552,-1040.91,0.00027397,7]
[384937450,1757628649562,-400.0,0.00027397,7]
[384937451,1757628649571,-1261.87,0.00027397,7]
[384937452,1757628649580,-636.63,0.00027397,7]
[384937453,1757628649590,-400.0,0.00027397,7]
[384937454,1757628649599,-400.0,0.00027397,7]
[384937455,1757628649609,-838.31,0.00027397,7]
[384937456,1757628649618,-400.0,0.00027397,7]
[384937457,1757628649628,-482.05,0.00027397,7]
[384937458,1757628649637,-2928.6,0.00027397,7]
[384937459,1757628649647,-1360.51,0.00027397,7]
[384937461,1757628649656,-400.0,0.00027397,7]
[384937463,1757628649665,-400.0,0.00027397,7]
[384937465,1757628649674,-756.88,0.00027397,7]
[384937467,1757628649683,-1463.82,0.00027397,7]
[384937469,1757628649692,-1566.12,0.00027397,7]
[384937471,1757628649701,-400.0,0.00027397,7]
[384937473,1757628649710,-1106.82,0.00027397,7]
[384937475,1757628649719,-1972.09,0.00027397,7]
[384937477,1757628649728,-400.0,0.00027397,7]
[384937478,1757628649738,-172.48,0.00027397,80]
[384937480,1757628649748,-508.6,0.00027397,2]
[384937482,1757628649757,-300.0,0.00027397,2]
[384937484,1757628649767,-23231.96,0.00027397,2]
[384937486,1757628649777,-1418.18,0.00027397,2]
[384937488,1757628649786,-1500.0,0.00027397,16]
[384937491,1757628649796,-1305.46064525,0.000274,2]
[384937492,1757628649805,-645.35,0.000274,2]
[384937494,1757628649818,-300.0,0.00027417,2]
[384937497,1757628649829,-1734.77,0.00027425,30]
[384937498,1757628649838,-11210.69302468,0.00027463,2]
[384937500,1757628649847,-3999.98026317,0.00027494,2]
[384937502,1757628649857,-251.614,0.00027559,2]
[384937503,1757628649868,-150.0,0.00027559,2]
[384937504,1757628649877,-199.74863836,0.00027571,2]